[Event "ROM-GER Kings"]
[Site "Medias"]
[Date "2015.10.31"]
[Round "2.4"]
[White "Fridman, Daniel"]
[Black "Deac, Bogdan Daniel"]
[Result "0-1"]
[ECO "E04"]
[WhiteElo "2649"]
[BlackElo "2455"]
[Annotator "Bulmaga,I"]
[PlyCount "170"]
[EventDate "2015.10.30"]
[EventType "schev"]
[EventRounds "5"]
[EventCountry "ROU"]
[SourceTitle "CBM 169"]
[Source "ChessBase"]
[SourceDate "2015.11.10"]
[SourceVersion "1"]
[SourceVersionDate "2015.11.10"]
[SourceQuality "1"]
[WhiteTeam "Germany"]
[BlackTeam "Romania"]
[WhiteTeamCountry "GER"]
[BlackTeamCountry "ROU"]
[TimeControl "40/5400+30:1800+30"]

1. d4 Nf6 2. c4 e6 3. g3 d5 4. Bg2 dxc4 5. Nf3 Bb4+ 6. Bd2 a5 7. O-O O-O 8. Bg5
{[#]} h6 {Ein interessanter Zug. Hauptvariante ist 8...Nc6. Ich vermute, IM
Deac wollte sich die Möglichkeit offenhalten, seinen Springer nach c6 oder
nach e7 zu entwickeln.} (8... Nc6 9. e3 h6 10. Bxf6 Qxf6 11. a3 Bd6 12. Nbd2
$14) 9. Bxf6 Qxf6 10. Qc2 Nc6 11. Qxc4 e5 12. d5 Nb8 13. Nc3 Na6 14. a3 Bd6 15.
Nd2 Bd7 16. Nce4 Qe7 17. Qc3 a4 {[#]} 18. f4 $2 {Weiß hat aus der Eröffnung
nichts herausgeholt, aber stand auch nicht schlechter. Mit 18.f4 schwächt er
jedoch einfach nur seine Stellung.} (18. Nc4 b5 19. Na5 Nc5 20. Nxc5 Bxc5 21.
d6 cxd6 22. Bxa8 Rxa8 23. Nb7 Bb6 (23... Bd4 24. Qc7 Bxb2 25. Ra2 Bd4 26. e3
Ba7) 24. Rfd1) 18... exf4 19. gxf4 f5 $5 (19... Nc5 20. Nxd6 cxd6 21. e4 Rac8
22. Qd4 $11) 20. Nxd6 cxd6 21. e4 (21. e3 {hielt IM Deac nach der Partie für
eine bessere Verteidigungsmöglichkeit für Weiß.} Rac8 22. Qd3 Nc5 {Aber
auch dann steht Schwarz besser.}) 21... Rac8 22. Qd4 fxe4 23. Nxe4 Nc5 24. Rae1
Nxe4 25. Rxe4 Qf6 26. Qxf6 Rxf6 $15 {Das Endspiel ist sehr angenehm für den
jungen rumänischen IM Deac und Weiß muss aufpassen, dass er nicht ernsthafte
Probleme bekommt.[#]} 27. Rb4 b5 28. Be4 Rc5 29. f5 $6 {Weiß will ...Lf5
verhindern, aber die weiße Stellung hat zu viele Schwächen und kann nicht
mehr verteidigt werden.} (29. Re1 Kf8 30. Bf3 {war vielleicht ein besserer
Versuch, um das Remis zu kämpfen.}) 29... Rf8 30. Rd4 Kf7 31. Kf2 Re8 32. h4
Re5 33. Kg3 Kf6 34. h5 Bxf5 35. Rb4 g6 36. hxg6 Kxg6 37. Bf3 Bd3 38. Rg4+ Rg5
39. Re1 Bf5 40. Rxg5+ hxg5 41. Re3 Kf6 42. b3 axb3 43. Rxb3 Ke5 44. Kf2 Kd4 45.
Rb4+ Kc3 46. Ke3 Bd7 47. Be4 Rc8 48. Rb1 Ra8 49. Rc1+ Kb2 50. Rc7 Be8 51. Re7
Kxa3 52. Rg7 b4 53. Rxg5 b3 54. Rg7 Ba4 55. Kd2 b2 56. Rb7 Re8 57. Bd3 Re5 58.
Bc4 Re4 59. Kc3 Re1 60. Bd3 Rc1+ 61. Kd2 Rc5 62. Be4 Rb5 63. Ra7 Rxd5+ 64. Kc3
Rc5+ 65. Kd4 Rc1 66. Ra6 Kb4 67. Bd3 Rc6 68. Ra8 Rb6 69. Bb1 Bb3 70. Rh8 d5 71.
Rg8 Bc4 72. Bc2 Ba2 73. Ra8 Bc4 74. Rg8 Ra6 75. Rb8+ Ka3 76. Rg8 Ka2 77. Rg1
Rh6 78. Kc3 Rf6 79. Rh1 Rf1 80. Rh8 Rf3+ 81. Kd4 b1=Q 82. Bxb1+ Kxb1 83. Rh2
Kc1 84. Rg2 Rd3+ 85. Kc5 Rd2 0-1

[Event "ROM-GER Kings"]
[Site "Medias"]
[Date "2015.10.30"]
[Round "1.4"]
[White "Donchenko, Alexander"]
[Black "Nevednichy, Vladislav"]
[Result "1-0"]
[ECO "E04"]
[WhiteElo "2577"]
[BlackElo "2557"]
[Annotator "Bulmaga/Rogozenco,D"]
[PlyCount "141"]
[EventDate "2015.10.30"]
[EventType "schev"]
[EventRounds "5"]
[EventCountry "ROU"]
[SourceTitle "CBM 169"]
[Source "ChessBase"]
[SourceDate "2015.11.10"]
[SourceVersion "1"]
[SourceVersionDate "2015.11.10"]
[SourceQuality "1"]
[WhiteTeam "Germany"]
[BlackTeam "Romania"]
[WhiteTeamCountry "GER"]
[BlackTeamCountry "ROU"]
[TimeControl "40/5400+30:1800+30"]

1. d4 Nf6 2. c4 e6 3. g3 {"Eine raffinierte Zugfolge, die Weiß mehr
Möglichkeiten gibt", meinte Rustam Kasimdzhanov, der Mannschaftstrainer der
Deutschen.} (3. Nf3 d5 4. g3 Bb4+ 5. Nbd2 dxc4) 3... d5 4. Bg2 Bb4+ 5. Nd2 O-O
(5... dxc4 $4 6. Qa4+ Nc6 7. Bxc6+ $18) 6. Ngf3 Nc6 {Ein seltener Zug, auf den
Schwarz vermutlich während der Partie verfallen ist. Die Hauptzüge sind hier
6...dxc4 und 6...b6.} 7. Qc2 dxc4 8. Qxc4 Qd5 9. O-O Rd8 10. e3 {Bis zu diesem
Zeitpunkt hatte Weiß fast keine Zeit verbraucht, wohingegen Schwarz einige
Mühe hatte, um in die Partie zu kommen. Doch der Kampf fängt gerade erst an
- allerdings steht Weiß vermutlich etwas besser.} a5 11. a3 Bxd2 12. Nxd2 Qxc4
13. Nxc4 a4 {Weiß hat ein angenehmes Endspiel.} 14. Bd2 Bd7 15. Rfc1 Be8 16.
Rc2 Nd5 17. Be1 f6 18. Rac1 Bg6 19. Rd2 Nde7 20. h3 Ra6 (20... b5 21. Ne5 fxe5
22. Bxc6 Nxc6 23. Rxc6 exd4 24. exd4 $14) 21. Rdd1 h5 22. f4 Bf7 23. Bf3 Rd7
24. Nd2 f5 25. Be2 Ra8 26. Kf2 (26. Bb5 Ra5 27. Rc5 {"war vielleicht besser",
meinte Alexander Donchenko nach der Partie.}) 26... Be8 27. Nf3 Nd5 28. Ng5 Nd8
29. Bc4 c6 30. Bd3 Re7 31. Rc5 Nf7 32. Nf3 Nd6 33. Ra5 Rxa5 34. Bxa5 b6 {[#]}
35. Be1 $6 {Beide Seiten befanden sich hier bereits in Zeitnot und da ist
dieser Zug verständlich.} ({Aber viel besser war} 35. Bb4 $1 $16 Nxb4 36. axb4
{was den schwarzen Befreiungszug ...c5 verhindert und Weiß dauerhaften
Vorteil gibt.}) 35... c5 36. Rc1 Rb7 37. Rc2 Bb5 38. Bxb5 Nxb5 39. dxc5 bxc5
40. Rxc5 $2 (40. Ng5 $1 $16) 40... Nd6 41. Rc2 Rb3 42. Ng5 Rxe3 43. Rc6 (43.
Kf1 $5 {Mit der Drohung Rc6, um die schwache Grundreihe auszunutzen.} Kf8 $8
$11) 43... Ne4+ 44. Nxe4 Rxe4 45. h4 {[#]} e5 $2 {Schwarz kann es sich nicht
leisten, einen Bauern zu opfern - aber vielleicht hat er die Idee 47. Rc5!
übersehen?} (45... Ne3 $11) 46. fxe5 Ne3 (46... Rxe5 $2 47. Rc5 $1 Ne3 48.
Rxe5 Ng4+ 49. Ke2 $16) 47. Bc3 Ng4+ (47... Nd1+ {Bot mehr Chancen, die
Stellung zu halten.}) 48. Kf3 Nh2+ 49. Kg2 Re2+ 50. Kg1 Ng4 51. e6 Kh7 52. Ra6
Re4 53. Bb4 Re3 54. Kg2 Nf6 55. e7 Nd5 56. Rxa4 Nxe7 57. Bxe7 Rxe7 58. Rb4 g5
59. hxg5 Kg6 60. a4 Kxg5 61. a5 Re5 62. Ra4 Re2+ 63. Kf3 Rxb2 64. a6 Rb3+ 65.
Ke2 Rb8 66. a7 Ra8 67. Kf3 Kf6 68. Kf4 Ke6 69. Ra5 Kd6 70. Kxf5 Kc6 71. Kg5 1-0

[Event "Khanty-Mansiysk FIDE GP (Women)"]
[Site "Khanty-Mansiysk"]
[Date "2014.04.14"]
[Round "5"]
[White "Hou, Yifan"]
[Black "Muminova, Nafisa"]
[Result "1-0"]
[ECO "E04"]
[WhiteElo "2618"]
[BlackElo "2321"]
[Annotator "ChessBase Website"]
[PlyCount "61"]
[EventDate "2014.04.09"]
[EventType "tourn"]
[EventRounds "11"]
[EventCountry "RUS"]
[EventCategory "10"]
[SourceTitle "CBM 160"]
[Source "ChessBase"]
[SourceDate "2014.05.15"]
[SourceVersion "1"]
[SourceVersionDate "2014.05.15"]
[SourceQuality "1"]
[TimeControl "40/5400+30:1800+30"]
[WhiteClock "1:30:00"]
[BlackClock "1:30:00"]

1. c4 {[%emt 0:00:00]} e6 {[%emt 0:00:00]} 2. g3 {[%emt 0:00:00]} d5 {[%emt 0:
00:03]} 3. Nf3 {[%emt 0:00:19]} Nf6 {[%emt 0:00:12]} 4. Bg2 {[%emt 0:00:05]} a6
{[%emt 0:00:11]} 5. d4 {[%emt 0:00:46]} dxc4 {[%emt 0:00:13]} 6. O-O {[%emt 0:
00:04]} Nc6 {[%emt 0:00:21]} 7. Nbd2 {[%emt 0:00:25]} (7. e3 Rb8 8. Qe2 b5 9.
b3 cxb3 10. axb3 Be7 11. Bb2 O-O 12. Rc1 Nb4 13. Ne5 Bb7 14. Bxb7 Rxb7 15. Nc6
Nxc6 16. Rxc6 Qd5 17. Qc2 Ne4 18. h4 g5 19. f3 Nxg3 20. e4 Qd7 21. Raxa6 gxh4
22. Qd2 Bf6 23. d5 Bxb2 24. Qxb2 exd5 25. Qf6 Qd8 26. Qh6 dxe4 27. Rg6+ fxg6
28. Rxg6+ hxg6 29. Qxg6+ Kh8 {1/2-1/2 (29) Cheparinov,I (2678)-Ponomariov,R 
(2743) Khanty-Mansiysk 2013}) 7... Nxd4 {[%emt 0:04:46]} 8. Nxc4 {[%emt 0:00:
08]} Bc5 {[%emt 0:10:49]} 9. Nfe5 $146 {[%emt 0:03:00]} (9. Bf4 Nxf3+ 10. Bxf3
Nd5 11. Be5 f6 12. e4 fxe5 13. exd5 O-O 14. Nxe5 Qf6 15. Nd3 Qxf3 16. Qxf3 Rxf3
17. Nxc5 exd5 18. Rfe1 b6 19. Ne6 Bxe6 20. Rxe6 Rf6 21. Re7 Rf7 22. Re6 Rd8 23.
Rc1 Kf8 24. Kf1 Rdd7 25. Ke2 Rfe7 26. Rxe7 Kxe7 27. Rc6 Kd8 28. f4 Re7+ 29. Kd2
Kd7 30. Rc1 Kd6 31. Rf1 Re4 32. Kd3 c5 33. a3 b5 34. Kd2 c4 35. Rf3 d4 36. Kd1
Kd5 37. Kd2 a5 38. Rf1 d3 {Wyss,J (2270)-Ismagambetov,A (2492) Zuerich 2010 0-1
}) 9... O-O {[%emt 0:03:52]} 10. Be3 {[%emt 0:00:52]} Ba7 {[%emt 0:02:28]} 11.
Rc1 $44 {[%emt 0:02:00] The World Champion used an interesting pawn sacrifice
in the Catalan for serious compensation. Muminova was never able to really
push White's pieces back, despite the fact that her position lacked any real
weaknesses. Eventually it was these problems she had with her pieces that cost
her the game as her rook, bishop and queen were completely tied down and
useless. A very clean game by Hou Yifan.} c5 {[%emt 0:05:52]} 12. Bd2 {[%emt 0:
00:25]} Nd5 {[%emt 0:03:21]} 13. e3 {[%emt 0:02:30]} Nb5 {[%emt 0:06:11]} 14.
Qe2 {[%emt 0:06:53]} Nd6 {[%emt 0:22:19]} 15. Rfd1 {[%emt 0:00:59]} Nxc4 {
[%emt 0:00:55]} 16. Nxc4 {[%emt 0:00:11]} b5 {[%emt 0:06:37]} 17. Ba5 {[%emt 0:
10:19]} Qe7 {[%emt 0:00:40]} 18. e4 {[%emt 0:02:01]} Nb4 {[%emt 0:10:11]} 19.
Bxb4 {[%emt 0:07:40]} cxb4 {[%emt 0:02:00]} 20. Ne5 {[%emt 0:05:24]} Qg5 {
[%emt 0:00:17]} 21. Nc6 {[%emt 0:04:24]} e5 {[%emt 0:01:12]} 22. h4 {[%emt 0:
07:41]} Qf6 {[%emt 0:00:09]} 23. b3 {[%emt 0:06:37]} a5 {[%emt 0:08:48]} 24.
Rc2 {[%emt 0:05:32]} Bb7 {[%emt 0:03:31]} 25. Nxa7 {[%emt 0:03:51]} Rxa7 {
[%emt 0:00:08]} 26. Rc7 {[%emt 0:00:50]} Qb6 {[%emt 0:04:12]} 27. Rdd7 {
[%emt 0:00:57]} a4 {[%emt 0:00:54]} 28. Kh2 {[%emt 0:04:59]} h6 {[%emt 0:00:37]
} 29. Qe3 {[%emt 0:05:42]} Qa6 {[%emt 0:00:40]} 30. Qc5 {[%emt 0:01:37]} axb3 {
[%emt 0:01:23]} 31. Qxf8+ {[%emt 0:00:19]} 1-0

[Event "Tata Steel-A 80th"]
[Site "Wijk aan Zee"]
[Date "2018.01.14"]
[Round "2"]
[White "Karjakin, Sergey"]
[Black "Anand, Viswanathan"]
[Result "1/2-1/2"]
[ECO "E04"]
[WhiteElo "2753"]
[BlackElo "2767"]
[Annotator "Fernandez,D"]
[PlyCount "64"]
[EventDate "2018.01.13"]
[EventType "tourn"]
[EventRounds "13"]
[EventCountry "NED"]
[EventCategory "20"]
[SourceTitle "CBM 183"]
[Source "ChessBase"]
[SourceDate "2018.03.14"]
[SourceVersion "1"]
[SourceVersionDate "2018.03.14"]
[SourceQuality "1"]
[TimeControl "40/6000+30:20/3000+30:900+30"]

1. Nf3 {[%emt 0:00:00]} d5 {[%emt 0:00:17]} 2. g3 {[%emt 0:00:00]} Nf6 {
[%emt 0:00:41]} 3. Bg2 {[%emt 0:00:00]} c5 {[%emt 0:00:14]} 4. O-O {[%emt 0:00:
03]} Nc6 {[%emt 0:00:08]} 5. d4 {[%emt 0:00:06]} e6 {[%emt 0:00:15]} 6. c4 {
[%emt 0:00:53]} dxc4 {[%emt 0:00:17]} 7. dxc5 {[%emt 0:00:08] Third most
popular after 7.Ne5 and 7.Qa4, but this is a good try for an advantage.} (7.
Qa4) (7. Ne5) ({An even less popular move was featured in the immediate
predecessor, though I actually find it quite interesting:} 7. Na3 $5 cxd4 8.
Nxc4 Bc5 9. b3 (9. a3 $5 {might improve and after} a5 {either Bf4 or the
straightforward gambit} 10. e3 $44) 9... Qe7 10. Nfe5 Nxe5 11. Nxe5 Nd7 $11 {
Carlsen,M-Anand,V London 2017, Black later managed to consolidate his pawn and
press for a while.}) 7... Qxd1 {[%emt 0:00:18]} 8. Rxd1 {[%emt 0:00:06]} Bxc5 {
[%emt 0:00:08]} 9. Nfd2 $5 {[%emt 0:00:06]} (9. Nbd2 c3 10. bxc3 O-O {is
reasonably topical; I actually think White may have something after the} 11.
Ne1 $5 {Le, Q-Harikrishna,P Huaian 2017}) 9... Na5 $1 $11 {[%emt 0:10:27] A
good move which essentially equalises since White can't easily attack the pawn
again.} 10. Na3 {[%emt 0:00:11]} (10. Nc3 Bd7 11. Nce4 Nxe4 12. Nxe4 Bb4 $1 {
with ...Bc6 to come is easy enough for Black}) 10... Bxa3 {[%emt 0:06:23]} 11.
bxa3 {[%emt 0:00:07]} O-O $146 {[%emt 0:08:30]} (11... Nd5 12. Ne4 O-O 13. Bd2
b6 14. Rac1 Ba6 15. Bxa5 bxa5 16. Nc5 Bb5 17. Bxd5 exd5 18. Rxd5 Rfd8 19. Rxd8+
Rxd8 20. Ne4 f5 21. Nc3 Bc6 22. f3 Kf7 23. Kf2 g5 24. Ke3 Rd6 25. Rd1 Re6+ 26.
Kf2 Rh6 27. h4 gxh4 28. gxh4 Rxh4 29. Rd6 Be8 30. Kg2 a4 31. Ra6 Rd4 32. Rxa7+
Ke6 33. Rxh7 Rd2 34. Rc7 Rc2 35. Rxc4 Bb5 36. Rc5 Bxe2 37. Kg3 Bd3 38. Kf4 Kd6
39. Rd5+ {1-0 (39) Carlsen,M (2837)-Harikrishna,P (2744) Riadh 2017}) (11... c3
$5 12. Nb3 Nc4 $132 {is maybe a bit too ambitious from Black, but White needs
to prove this in a precise way.}) 12. Ne4 {[%emt 0:01:49]} Nxe4 {[%emt 0:01:49]
} 13. Bxe4 {[%emt 0:00:05]} e5 {[%emt 0:01:33]} 14. Bb2 {[%emt 0:01:48]} Re8 {
[%emt 0:05:41]} 15. Bc3 {[%emt 0:05:32]} Nc6 {[%emt 0:00:15] White might
appear to have something here but one of the most basic facts about this
position is that the c8-bishop will develop soon, so therefore Black has few
difficulties once a few more moves are played.} 16. Rab1 {[%emt 0:00:04]} h6 {
[%emt 0:14:37] The computer disagrees, but this move is completely the right
one from a schematic point of view. Black would like to play ...Re7 but right
now there is an issue with the back rank, therefore he solves it and then
plays ...Re7.} (16... Nd4 17. Bxd4 exd4 18. Rxd4 Be6 19. Rxb7 Rec8 $11 {
is one other way to play}) 17. f3 {[%emt 0:07:10]} Re7 {[%emt 0:05:59]} 18. Kf2
{[%emt 0:25:29]} f6 {[%emt 0:11:33] Now White must take action reasonably
quickly, or else after ...Be6 and ...Rd8 he risks having his compensation fade.
} 19. Bd5+ {[%emt 0:05:48]} Kh7 {[%emt 0:00:39]} 20. Be4+ {[%emt 0:17:25]} Kg8
{[%emt 0:00:43]} 21. Bb4 {[%emt 0:04:12]} Rc7 {[%emt 0:05:57]} 22. Bd6 {
[%emt 0:01:54]} Rd7 {[%emt 0:00:30]} 23. Bd5+ {[%emt 0:01:08]} Kh8 {[%emt 0:02:
43]} 24. Bxc4 {[%emt 0:03:38]} Nd4 {[%emt 0:01:48]} 25. Bc5 $6 {[%emt 0:00:08]
This move is maybe a bit too compliant.} (25. Bb4 {keeps trying for an
advantage, though I think Black still proves his concept after the precise} Rc7
26. Bd5 Bd7 $1 {It is important to not fear ghosts.} 27. e3 Bc6 $1 $11) 25...
Rc7 {[%emt 0:00:37]} 26. Bxd4 {[%emt 0:00:03]} Rxc4 {[%emt 0:00:33]} 27. Be3 {
[%emt 0:00:04]} b6 {[%emt 0:01:59]} 28. Rd8+ {[%emt 0:00:09]} Kh7 {[%emt 0:00:
06]} 29. Rc1 {[%emt 0:00:02]} Rxc1 {[%emt 0:00:10]} 30. Bxc1 {[%emt 0:00:05]}
Bb7 {[%emt 0:00:06]} 31. Rxa8 {[%emt 0:00:06] Here I might be vaguely tempted
to play a few moves of the bishop endgame as Black, because the doubled pawns
mean only I can be better, but the players had sufficient respect for each
other to agree a draw here.} Bxa8 32. e4 Kg6 $15 1/2-1/2

[Event "Tata Steel-A 80th"]
[Site "Wijk aan Zee"]
[Date "2018.01.14"]
[Round "2"]
[White "Matlakov, Maxim"]
[Black "So, Wesley"]
[Result "1/2-1/2"]
[ECO "E04"]
[WhiteElo "2718"]
[BlackElo "2792"]
[Annotator "Fernandez,D"]
[PlyCount "60"]
[EventDate "2018.01.13"]
[EventType "tourn"]
[EventRounds "13"]
[EventCountry "NED"]
[EventCategory "20"]
[SourceTitle "CBM 183"]
[Source "ChessBase"]
[SourceDate "2018.03.14"]
[SourceVersion "1"]
[SourceVersionDate "2018.03.14"]
[SourceQuality "1"]
[TimeControl "40/6000+30:20/3000+30:900+30"]

1. d4 {[%emt 0:00:00]} Nf6 {[%emt 0:00:37]} 2. c4 {[%emt 0:00:00]} e6 {[%emt 0:
00:10]} 3. g3 {[%emt 0:00:00]} d5 {[%emt 0:01:19]} 4. Bg2 {[%emt 0:00:11]} dxc4
{[%emt 0:01:15]} 5. Nf3 {[%emt 0:00:25]} Nc6 {[%emt 0:00:31]} 6. Qa4 {[%emt 0:
02:23]} (6. O-O {is another main move, but I believe ...Rb8 equalises.}) 6...
Bb4+ {[%emt 0:00:12]} 7. Bd2 {[%emt 0:00:22]} Nd5 {[%emt 0:00:07]} 8. Bxb4 {
[%emt 0:01:11]} (8. Qb5 Bxd2+ 9. Nbxd2 c3 10. bxc3 Nxc3 11. Qb2 Na4 12. Qc2 Nb6
13. e3 O-O 14. O-O Qe7 15. Rac1 Rd8 16. Nb3 Rb8 17. Nc5 Nd5 18. a3 h6 19. Rfe1
b6 20. Nxe6 Bxe6 21. Qxc6 Qxa3 22. Ra1 Qd6 23. Qxd6 cxd6 24. Rxa7 Nc3 25. e4 b5
26. d5 Bg4 27. Nd4 b4 28. h3 Bd1 29. e5 b3 30. e6 fxe6 31. Rxe6 Bc2 32. Nxb3
Rxb3 33. Ree7 g5 34. Rac7 Bf5 35. Rg7+ Kh8 36. Rgf7 Ne2+ 37. Kh2 Nd4 {
Harikrishna,P (2755)-Bu,X (2723) Danzhou 2016 0-1}) 8... Ndxb4 {[%emt 0:00:08]}
9. Nc3 {[%emt 0:13:59]} Bd7 {[%emt 0:01:02]} 10. O-O {[%emt 0:01:52]} a5 {
[%emt 0:00:32]} 11. Qd1 {[%emt 0:01:43]} O-O {[%emt 0:00:12]} 12. e3 {[%emt 0:
02:55]} (12. Nd2 $5 {scores extremely well, though it seems Black should
somehow have equality.} Nxd4 13. Bxb7 Rb8 14. Bg2 Bc8 15. Nxc4 Ba6 $1 (15... c5
16. e3 Ba6 17. b3 $14 {Leko,P-Grischuk,A Khanty-Mansiysk 2010, was a better
version for White.}) 16. b3 Bxc4 17. bxc4 Ndc2 $11 {White will be hard pressed
to make anything of the advantage of the bishop.}) 12... a4 {[%emt 0:00:47]}
13. Nxa4 {[%emt 0:10:13] Probably the best try for an edge.} (13. Qe2 $5 {
and now} Na5 14. Ne5 Nd5 15. Nxd5 exd5 16. Bxd5 Bh3 17. Qf3 $5 {Aronian,
L-Kramnik,V Shanghai 2010, was an interesting piece of preparation from White,
but the exchange did eventually tell.}) 13... Nxd4 {[%emt 0:00:38]} 14. Qxd4 {
[%emt 0:00:43]} Bxa4 {[%emt 0:00:06]} 15. Qxc4 {[%emt 0:00:21]} Qe7 {[%emt 0:
00:05] Computers rather like White's position around here, but tend to calm
down quickly.} 16. a3 {[%emt 0:08:01]} Nd5 {[%emt 0:00:42]} 17. Rfc1 {[%emt 0:
10:49]} (17. e4 Nb6 18. Qc3 {might be an interesting way to play - White's
plans like b3, a4, Rfc1, Qc5 are much more immediately obvious than Black's
corresponding ones.}) 17... Rfc8 {[%emt 0:01:06]} 18. b3 {[%emt 0:07:34]} Bc6
$146 {[%emt 0:06:14]} (18... Be8 {is preferred by engines, but I actually
prefer the text. The follow-up after ...Be8 could be} 19. a4 c5 (19... c6 20.
Nd2 {when Black's grip on equality is a bit tenuous.}) 20. Ne1 Nb4 21. Nd3 Nxd3
22. Qxd3 Ra5 23. Qc3 b6 24. Rd1 Ra7 25. h4 {½-½ (25) Van der Hoeven,D (2639)
-Munoz Moreno,F (2525) ICCF email 2010}) 19. Nd4 {[%emt 0:04:02]} Rxa3 {
[%emt 0:00:54] As a human you just know what is going to happen now...} 20.
Nxc6 {[%emt 0:00:54]} bxc6 {[%emt 0:00:06]} 21. Qxc6 {[%emt 0:00:25]} Rxa1 {
[%emt 0:05:19]} 22. Rxa1 {[%emt 0:00:07]} Nf6 {[%emt 0:00:24]} 23. Rc1 {
[%emt 0:09:28]} h5 {[%emt 0:02:48]} 24. Bf3 {[%emt 0:00:57]} Rb8 {[%emt 0:05:
32]} 25. Qxc7 {[%emt 0:04:49]} Qxc7 {[%emt 0:00:05]} 26. Rxc7 {[%emt 0:00:04]}
Rxb3 {[%emt 0:00:05] ...and here it is.} 27. Rc8+ {[%emt 0:00:11]} Kh7 {
[%emt 0:00:06]} 28. Rc7 {[%emt 0:00:05]} Kg8 {[%emt 0:01:18]} 29. Rc8+ {
[%emt 0:00:05]} Kh7 {[%emt 0:00:04]} 30. Rc7 {[%emt 0:00:04]} Kg8 1/2-1/2